[Event "13th Arad Open 2020"]
[Site "Arad"]
[Date "2020.09.30"]
[Round "8.4"]
[White "Istratescu, Andrei"]
[Black "Dobrin, Ionut-Alexandru"]
[Result "1-0"]
[ECO "E71"]
[WhiteElo "2551"]
[BlackElo "2040"]
[Annotator "ChessBase"]
[PlyCount "63"]
[EventDate "2020.09.25"]
[EventType "swiss"]
[EventCountry "ROU"]
[SourceTitle "playchess.com"]
[Source "ChessBase"]
[SourceQuality "1"]
[TimeControl "5400+30"]

1. d4 {[%emt 0:00:00]} Nf6 {[%emt 0:00:00]} 2. c4 {[%emt 0:00:00]} g6 {[%emt 0:00:00]} 3. Nc3 {[%emt 0:00:04]} Bg7 {[%emt 0:00:00]} 4. e4 {[%emt 0:00:07]} d6 {[%emt 0:00:00]} 5. h3 {[%emt 0:00:11]} O-O {[%emt 0:01:45]} 6. Be3 {[%emt 0:02:11]} e5 {[%emt 0:02:06]} 7. d5 {[%emt 0:00:31]} Ne8 {[%emt 0:01:58]} 8. g4 {[%emt 0:01:14]} f5 {[%emt 0:02:09]} 9. gxf5 {[%emt 0:01:14]} gxf5 {[%emt 0:00:02]} 10. exf5 {[%emt 0:00:06]} Bxf5 {[%emt 0:02:00]} 11. Nge2 {[%emt 0:00:48]} Nd7 {[%emt 0:12:07]} 12. Ng3 {[%emt 0:01:29]} e4 {[%emt 0:02:06]} 13. Be2 {[%emt 0:05:48]} Ne5 {[%emt 0:02:36]} 14. Nxf5 {[%emt 0:01:18]} Rxf5 {[%emt 0:00:11]} 15. Nxe4 {[%emt 0:00:11]} Qh4 {[%emt 0:04:40]} 16. Bg4 {[%emt 0:06:11]} Nf6 {[%emt 0:11:07]} 17. Bxf5 {[%emt 0:01:49]} Nxe4 {[%emt 0:00:08]} 18. Qe2 {[%emt 0:04:07]} Rf8 {[%emt 0:01:53]} 19. Bxe4 {[%emt 0:07:11]} Qxe4 {[%emt 0:00:02]} 20. O-O-O {[%emt 0:00:05]} Nf3 {[%emt 0:07:18]} 21. Qc2 {[%emt 0:03:08]} Qe5 {[%emt 0:00:12]} 22. Kb1 {[%emt 0:04:31]} b5 {[%emt 0:01:03]} 23. cxb5 {[%emt 0:05:25]} Rb8 {[%emt 0:01:17]} 24. a4 {[%emt 0:02:40]} a6 {[%emt 0:00:38]} 25. Rd3 {[%emt 0:00:47]} axb5 {[%emt 0:02:31]} 26. Rb3 {[%emt 0:00:45]} Ra8 {[%emt 0:09:17]} 27. Rxb5 {[%emt 0:00:55]} Nd4 {[%emt 0:00:48]} 28. Bxd4 {[%emt 0:00:24]} Qxd4 {[%emt 0:00:02]} 29. Rg1 {[%emt 0:03:41]} Re8 {[%emt 0:11:37]} 30. Rg4 {[%emt 0:03:38]} Qe5 {[%emt 0:03:35]} 31. Qxc7 {[%emt 0:00:41]} Qf5+ {[%emt 0:00:58]} 32. Ka2 {[%emt 0:00:20]} 1-0

[Event "13th Arad Open 2020"]
[Site "Arad"]
[Date "2020.09.30"]
[Round "8.5"]
[White "Isfan, Ioan-Marius"]
[Black "Daianu, Cristian-Clement"]
[Result "1-0"]
[ECO "A80"]
[WhiteElo "2187"]
[BlackElo "2224"]
[Annotator "ChessBase"]
[PlyCount "80"]
[EventDate "2020.09.25"]
[EventType "swiss"]
[EventCountry "ROU"]
[SourceTitle "playchess.com"]
[Source "ChessBase"]
[SourceQuality "1"]
[TimeControl "5400+30"]

1. d4 {[%emt 0:00:00]} f5 {[%emt 0:06:17]} 2. Bg5 {[%emt 0:00:44]} h6 {[%emt 0:01:31]} 3. Bh4 {[%emt 0:00:03]} g5 {[%emt 0:00:09]} 4. Bg3 {[%emt 0:00:04]} Nf6 {[%emt 0:00:33]} 5. e3 {[%emt 0:00:06]} e6 {[%emt 0:02:30]} 6. h4 {[%emt 0:04:28]} Rg8 {[%emt 0:01:32]} 7. d5 {[%emt 0:08:19]} d6 {[%emt 0:03:55]} 8. dxe6 {[%emt 0:10:34]} Bxe6 {[%emt 0:00:46]} 9. hxg5 {[%emt 0:00:07]} hxg5 {[%emt 0:00:10]} 10. Nf3 {[%emt 0:00:13]} Qe7 {[%emt 0:09:25]} 11. Nd4 {[%emt 0:03:39]} Bd7 {[%emt 0:06:03]} 12. Qf3 {[%emt 0:07:42]} Nc6 {[%emt 0:06:21]} 13. Nxf5 {[%emt 0:01:39]} Bxf5 {[%emt 0:11:05]} 14. Qxf5 {[%emt 0:07:30]} Ne4 {[%emt 0:02:00]} 15. Qg4 {[%emt 0:24:27]} Bg7 {[%emt 0:05:09]} 16. c3 {[%emt 0:01:32]} Nxg3 {[%emt 0:04:29]} 17. Qxg3 {[%emt 0:02:24]} O-O-O {[%emt 0:00:16]} 18. Nd2 {[%emt 0:00:19]} Ne5 {[%emt 0:23:57]} 19. O-O-O {[%emt 0:05:39]} Qf7 {[%emt 0:00:27]} 20. Kb1 {[%emt 0:10:22]} Kb8 {[%emt 0:10:50]} 21. Nb3 {[%emt 0:04:42]} Qf5+ {[%emt 0:02:14]} 22. Kc1 {[%emt 0:00:28]} Qd7 {[%emt 0:00:44]} 23. Be2 {[%emt 0:05:38]} a5 {[%emt 0:00:01]} 24. Qxg5 {[%emt 0:00:42]} a4 {[%emt 0:00:58]} 25. Nd4 {[%emt 0:00:05]} Nc6 {[%emt 0:00:19]} 26. Rh7 {[%emt 0:01:02]} Nxd4 {[%emt 0:00:36]} 27. Rxd4 {[%emt 0:00:01]} a3 {[%emt 0:00:34]} 28. bxa3 {[%emt 0:00:42]} Qf7 {[%emt 0:00:28]} 29. Rc4 {[%emt 0:00:48]} Qxf2 {[%emt 0:00:36]} 30. Rxg7 Qxe2 {[%emt 0:00:24]} 31. Rxg8 {[%emt 0:00:23]} Qe1+ {[%emt 0:00:36]} 32. Kb2 {[%emt 0:00:05]} Qd2+ {[%emt 0:00:09]} 33. Kb3 {[%emt 0:00:11]} Qd1+ {[%emt 0:00:08]} 34. Kb4 {[%emt 0:00:18]} Qb1+ {[%emt 0:01:09]} 35. Ka4 {[%emt 0:00:05]} Qc2+ {[%emt 0:00:36]} 36. Ka5 {[%emt 0:01:03]} Rxg8 {[%emt 0:00:14]} 37. Qxg8+ {[%emt 0:00:06]} Ka7 {[%emt 0:00:02]} 38. Rxc7 {[%emt 0:00:25]} Qf5+ {[%emt 0:01:13]} 39. Ka4 {[%emt 0:00:44]} d5 {[%emt 0:00:20]} 40. Qh7 {[%emt 0:00:22]} Qg4+ 1-0

[Event "13th Arad Open 2020"]
[Site "Arad"]
[Date "2020.09.30"]
[Round "8.6"]
[White "Bogdan, Dan"]
[Black "Lehaci, Miruna-Daria"]
[Result "1-0"]
[ECO "A10"]
[WhiteElo "2364"]
[BlackElo "2223"]
[Annotator "ChessBase"]
[PlyCount "87"]
[EventDate "2020.09.25"]
[EventType "swiss"]
[EventCountry "ROU"]
[SourceTitle "playchess.com"]
[Source "ChessBase"]
[SourceQuality "1"]
[TimeControl "5400+30"]

1. c4 {[%emt 0:09:32]} b6 {[%emt 0:00:00]} 2. e4 {[%emt 0:02:05]} Bb7 {[%emt 0:02:03]} 3. d3 {[%emt 0:02:50]} c5 {[%emt 0:01:34]} 4. Nf3 {[%emt 0:00:12]} Nc6 {[%emt 0:00:49]} 5. Nc3 {[%emt 0:03:07]} d6 {[%emt 0:01:17]} 6. d4 {[%emt 0:00:27]} cxd4 {[%emt 0:01:18]} 7. Nxd4 {[%emt 0:01:47]} Nf6 {[%emt 0:02:02]} 8. f3 {[%emt 0:00:31]} g6 {[%emt 0:01:24]} 9. Be3 {[%emt 0:01:49]} Bg7 {[%emt 0:00:17]} 10. Qd2 {[%emt 0:00:03]} O-O {[%emt 0:02:30]} 11. Be2 {[%emt 0:01:40]} Re8 {[%emt 0:00:50]} 12. O-O {[%emt 0:00:17]} Rc8 {[%emt 0:01:56]} 13. Rac1 {[%emt 0:00:42]} Ne5 {[%emt 0:06:29]} 14. b3 {[%emt 0:02:45]} Qc7 {[%emt 0:06:20]} 15. Nd5 {[%emt 0:05:16]} Qb8 {[%emt 0:01:34]} 16. Rfd1 {[%emt 0:02:17]} Ned7 {[%emt 0:05:44]} 17. Bf1 {[%emt 0:02:02]} a6 {[%emt 0:02:54]} 18. Ne2 {[%emt 0:01:49]} Ba8 {[%emt 0:00:47]} 19. Nec3 {[%emt 0:00:22]} h5 {[%emt 0:10:38]} 20. Qf2 {[%emt 0:08:40]} b5 {[%emt 0:08:15]} 21. Kh1 {[%emt 0:09:58]} b4 {[%emt 0:13:18]} 22. Nxf6+ {[%emt 0:01:17]} Nxf6 {[%emt 0:00:25]} 23. Na4 {[%emt 0:01:06]} Bc6 {[%emt 0:05:52]} 24. Nb6 {[%emt 0:05:17]} Rcd8 {[%emt 0:00:26]} 25. Nd5 {[%emt 0:06:09]} e6 {[%emt 0:03:28]} 26. Nf4 {[%emt 0:02:15]} Qb7 {[%emt 0:04:49]} 27. Nd3 {[%emt 0:01:53]} a5 {[%emt 0:04:19]} 28. Bb6 {[%emt 0:03:36]} Ra8 {[%emt 0:00:38]} 29. Bd4 {[%emt 0:00:18]} Rec8 {[%emt 0:04:00]} 30. Ne1 {[%emt 0:02:44]} Rd8 {[%emt 0:03:03]} 31. Nc2 {[%emt 0:01:25]} a4 {[%emt 0:01:07]} 32. Qh4 {[%emt 0:01:40]} Ne8 {[%emt 0:00:53]} 33. Bxg7 {[%emt 0:00:47]} Kxg7 {[%emt 0:00:05]} 34. Nd4 {[%emt 0:00:23]} axb3 {[%emt 0:00:41]} 35. axb3 {[%emt 0:00:04]} Nf6 {[%emt 0:01:46]} 36. Qf2 {[%emt 0:02:21]} Ra3 {[%emt 0:00:43]} 37. Qb2 {[%emt 0:00:21]} Rda8 {[%emt 0:00:56]} 38. Nc2 {[%emt 0:02:00]} Ra2 {[%emt 0:01:26]} 39. Qd4 {[%emt 0:00:34]} R2a6 {[%emt 0:00:50]} 40. c5 {[%emt 0:02:15]} R6a7 {[%emt 0:01:56]} 41. cxd6 {[%emt 0:01:25]} Bb5 {[%emt 0:00:18]} 42. Ne3 {[%emt 0:01:06]} Bxf1 {[%emt 0:00:26]} 43. Rxf1 {[%emt 0:00:26]} Qb5 {[%emt 0:00:17]} 44. Nc4 {[%emt 0:01:04]} 1-0

[Event "13th Arad Open 2020"]
[Site "Arad"]
[Date "2020.09.30"]
[Round "8.7"]
[White "Suciu, Dinu-Simi"]
[Black "Patrascu, Catalin-Lucian"]
[Result "1/2-1/2"]
[ECO "A20"]
[WhiteElo "2050"]
[BlackElo "2320"]
[Annotator "ChessBase"]
[PlyCount "45"]
[EventDate "2020.09.25"]
[EventType "swiss"]
[EventCountry "ROU"]
[SourceTitle "playchess.com"]
[Source "ChessBase"]
[SourceQuality "1"]
[TimeControl "5400+30"]

1. c4 {[%emt 0:12:54]} e5 {[%emt 0:01:03]} 2. g3 {[%emt 0:02:16]} Nf6 {[%emt 0:00:45]} 3. Bg2 {[%emt 0:00:10]} Nc6 {[%emt 0:01:50]} 4. Nc3 {[%emt 0:00:23]} Bc5 {[%emt 0:01:17]} 5. e3 {[%emt 0:01:43]} O-O {[%emt 0:00:34]} 6. Nge2 {[%emt 0:00:08]} Re8 {[%emt 0:01:44]} 7. O-O {[%emt 0:00:13]} a6 {[%emt 0:01:05]} 8. d4 {[%emt 0:01:46]} Ba7 {[%emt 0:05:21]} 9. dxe5 {[%emt 0:04:49]} Nxe5 {[%emt 0:00:35]} 10. b3 {[%emt 0:00:09]} d6 {[%emt 0:00:47]} 11. h3 {[%emt 0:00:11]} Rb8 {[%emt 0:01:18]} 12. Nd4 {[%emt 0:00:56]} Bd7 {[%emt 0:02:12]} 13. a4 {[%emt 0:01:13]} Nc6 {[%emt 0:09:28]} 14. Nxc6 {[%emt 0:07:29]} bxc6 {[%emt 0:10:00]} 15. Ba3 {[%emt 0:04:36]} a5 {[%emt 0:04:26]} 16. Kh2 {[%emt 0:07:31]} Qe7 {[%emt 0:12:32]} 17. Ne2 {[%emt 0:03:53]} Ne4 {[%emt 0:01:59]} 18. Nd4 {[%emt 0:00:14]} Nxf2 {[%emt 0:11:50]} 19. Rxf2 {[%emt 0:00:22]} Qxe3 {[%emt 0:00:03]} 20. Rf4 {[%emt 0:04:46]} Bxd4 {[%emt 0:03:11]} 21. Bc1 {[%emt 0:04:45]} Qxf4 {[%emt 0:03:23]} 22. Bxf4 {[%emt 0:02:02]} Bxa1 {[%emt 0:00:03]} 23. Qxa1 {[%emt 0:02:09]} 1/2-1/2

[Event "13th Arad Open 2020"]
[Site "Arad"]
[Date "2020.09.30"]
[Round "8.8"]
[White "Prisacaru, Stefan-Emilian"]
[Black "Antonica, Dragos-Andrei"]
[Result "0-1"]
[ECO "A05"]
[WhiteElo "2007"]
[BlackElo "2301"]
[Annotator "ChessBase"]
[PlyCount "104"]
[EventDate "2020.09.25"]
[EventType "swiss"]
[EventCountry "ROU"]
[SourceTitle "playchess.com"]
[Source "ChessBase"]
[SourceQuality "1"]
[TimeControl "5400+30"]

1. Nf3 {[%emt 0:00:00]} Nf6 {[%emt 0:00:00]} 2. c4 {[%emt 0:00:01]} e6 {[%emt 0:00:14]} 3. g3 {[%emt 0:00:41]} d5 {[%emt 0:00:42]} 4. b3 {[%emt 0:01:18]} Be7 {[%emt 0:00:32]} 5. Bg2 {[%emt 0:00:34]} O-O {[%emt 0:00:57]} 6. Bb2 {[%emt 0:01:09]} c5 {[%emt 0:01:27]} 7. O-O {[%emt 0:05:16]} Nc6 {[%emt 0:03:03]} 8. e3 {[%emt 0:01:01]} b6 {[%emt 0:04:39]} 9. d3 {[%emt 0:02:47]} a6 {[%emt 0:03:49]} 10. Nc3 {[%emt 0:02:40]} Rb8 {[%emt 0:04:52]} 11. e4 {[%emt 0:03:02]} d4 {[%emt 0:01:56]} 12. Ne2 {[%emt 0:00:11]} b5 {[%emt 0:01:12]} 13. Nd2 {[%emt 0:00:36]} Nb4 {[%emt 0:04:13]} 14. Qb1 {[%emt 0:01:05]} e5 {[%emt 0:02:02]} 15. Ba3 {[%emt 0:01:28]} Nc6 {[%emt 0:01:27]} 16. Qc1 {[%emt 0:04:29]} Qa5 {[%emt 0:05:29]} 17. h3 {[%emt 0:01:10]} Be6 {[%emt 0:02:19]} 18. f4 {[%emt 0:04:59]} bxc4 {[%emt 0:01:17]} 19. bxc4 {[%emt 0:00:33]} Nb4 {[%emt 0:06:11]} 20. Bxb4 {[%emt 0:02:18]} Rxb4 {[%emt 0:00:02]} 21. fxe5 {[%emt 0:04:30]} Nd7 {[%emt 0:00:19]} 22. Nf3 {[%emt 0:00:34]} Qc7 {[%emt 0:03:00]} 23. Qf4 {[%emt 0:03:49]} Rb2 {[%emt 0:02:00]} 24. Rf2 {[%emt 0:03:43]} Rfb8 {[%emt 0:00:36]} 25. g4 {[%emt 0:01:35]} a5 {[%emt 0:02:06]} 26. Qg3 {[%emt 0:16:39]} a4 {[%emt 0:02:49]} 27. Nf4 {[%emt 0:04:26]} Rxf2 {[%emt 0:03:25]} 28. Qxf2 {[%emt 0:00:26]} Nxe5 {[%emt 0:00:46]} 29. Nxe6 {[%emt 0:04:13]} fxe6 {[%emt 0:02:55]} 30. Nxe5 {[%emt 0:04:09]} Qxe5 {[%emt 0:00:16]} 31. Rf1 {[%emt 0:01:55]} Bd6 {[%emt 0:20:41]} 32. Bf3 {[%emt 0:01:25]} a3 {[%emt 0:03:11]} 33. Bd1 {[%emt 0:04:31]} h6 {[%emt 0:06:47]} 34. Bb3 {[%emt 0:03:10]} Kh7 {[%emt 0:01:07]} 35. Qg2 {[%emt 0:01:58]} Qg5 {[%emt 0:00:54]} 36. Kh1 {[%emt 0:01:20]} Bf4 {[%emt 0:03:35]} 37. Qf2 {[%emt 0:05:47]} Rf8 {[%emt 0:01:13]} 38. Qg2 {[%emt 0:00:25]} Qh4 {[%emt 0:00:40]} 39. Rf2 {[%emt 0:02:34]} e5 {[%emt 0:00:38]} 40. Rf1 {[%emt 0:02:35]} Rf6 {[%emt 0:00:34]} 41. Ba4 {[%emt 0:01:24]} h5 {[%emt 0:02:43]} 42. Be8 {[%emt 0:02:15]} hxg4 {[%emt 0:01:42]} 43. Qxg4 {[%emt 0:00:02]} Qxg4 {[%emt 0:00:16]} 44. hxg4 {[%emt 0:00:01]} Rh6+ {[%emt 0:00:05]} 45. Kg1 {[%emt 0:00:26]} Rh3 {[%emt 0:00:03]} 46. Rb1 {[%emt 0:03:15]} Rxd3 {[%emt 0:01:06]} 47. Rb6 {[%emt 0:00:31]} Rg3+ {[%emt 0:01:11]} 48. Kf2 {[%emt 0:00:12]} Rxg4 {[%emt 0:00:08]} 49. Bd7 {[%emt 0:00:17]} Be3+ {[%emt 0:00:41]} 50. Ke2 {[%emt 0:00:28]} Rg2+ {[%emt 0:00:40]} 51. Ke1 {[%emt 0:00:22]} d3 {[%emt 0:00:22]} 52. Bh3 {[%emt 0:00:44]} d2+ {[%emt 0:00:13]} 0-1

[Event "13th Arad Open 2020"]
[Site "Arad"]
[Date "2020.09.30"]
[Round "8.9"]
[White "Ursan, Petru-Sebastian"]
[Black "Carasca, Bogdan-Petru"]
[Result "1/2-1/2"]
[ECO "D79"]
[WhiteElo "2248"]
[BlackElo "2132"]
[Annotator "ChessBase"]
[PlyCount "102"]
[EventDate "2020.09.25"]
[EventType "swiss"]
[EventCountry "ROU"]
[SourceTitle "playchess.com"]
[Source "ChessBase"]
[SourceQuality "1"]
[TimeControl "5400+30"]

1. d4 {[%emt 0:12:33]} Nf6 {[%emt 0:00:00]} 2. Nf3 {[%emt 0:00:14]} g6 {[%emt 0:00:13]} 3. g3 {[%emt 0:00:38]} Bg7 {[%emt 0:00:11]} 4. c4 {[%emt 0:00:29]} O-O {[%emt 0:00:19]} 5. Bg2 {[%emt 0:00:48]} c6 {[%emt 0:01:18]} 6. O-O {[%emt 0:00:38]} d5 {[%emt 0:00:15]} 7. cxd5 {[%emt 0:02:28]} cxd5 {[%emt 0:00:09]} 8. Nc3 {[%emt 0:00:19]} Nc6 {[%emt 0:00:06]} 9. Ne5 {[%emt 0:00:17]} e6 {[%emt 0:00:21]} 10. Nxc6 {[%emt 0:10:07]} bxc6 {[%emt 0:00:06]} 11. Bf4 {[%emt 0:00:11]} Nh5 {[%emt 0:01:33]} 12. Be3 {[%emt 0:04:33]} a5 {[%emt 0:02:32]} 13. Rc1 {[%emt 0:05:16]} Ba6 {[%emt 0:02:03]} 14. Na4 {[%emt 0:06:24]} Bb5 {[%emt 0:00:47]} 15. Nc5 {[%emt 0:00:16]} a4 {[%emt 0:00:44]} 16. Qd2 {[%emt 0:01:33]} Nf6 {[%emt 0:14:42]} 17. Bg5 {[%emt 0:08:20]} Qc8 {[%emt 0:02:27]} 18. Bf3 {[%emt 0:02:37]} Re8 {[%emt 0:01:10]} 19. h4 {[%emt 0:00:44]} Nd7 {[%emt 0:03:43]} 20. h5 {[%emt 0:08:18]} e5 {[%emt 0:09:47]} 21. Bh6 {[%emt 0:00:50]} Nxc5 {[%emt 0:09:14]} 22. Bxg7 {[%emt 0:04:55]} Kxg7 {[%emt 0:01:25]} 23. h6+ {[%emt 0:00:44]} Kg8 {[%emt 0:00:49]} 24. Rxc5 {[%emt 0:04:16]} e4 {[%emt 0:01:45]} 25. Bg2 {[%emt 0:06:53]} Qe6 {[%emt 0:02:26]} 26. Rfc1 {[%emt 0:00:36]} f5 {[%emt 0:03:13]} 27. Qg5 {[%emt 0:01:31]} Qe7 {[%emt 0:07:51]} 28. Qf4 {[%emt 0:02:02]} Qf6 {[%emt 0:03:44]} 29. e3 {[%emt 0:01:04]} g5 {[%emt 0:06:05]} 30. Qc7 {[%emt 0:00:10]} Qxh6 {[%emt 0:10:40]} 31. Bf1 {[%emt 0:00:32]} Rac8 {[%emt 0:01:22]} 32. Qd7 {[%emt 0:00:33]} Rcd8 {[%emt 0:03:14]} 33. Qxf5 {[%emt 0:00:39]} Rf8 {[%emt 0:00:14]} 34. Qh3 {[%emt 0:01:56]} Qf6 {[%emt 0:00:23]} 35. R1c2 {[%emt 0:00:56]} Bxf1 {[%emt 0:01:37]} 36. Kxf1 {[%emt 0:02:09]} Rd6 {[%emt 0:00:50]} 37. Qg4 {[%emt 0:01:08]} Qg6 {[%emt 0:01:39]} 38. Kg1 {[%emt 0:04:43]} h5 {[%emt 0:00:53]} 39. Qh3 {[%emt 0:00:31]} h4 {[%emt 0:02:23]} 40. Qg4 {[%emt 0:02:24]} hxg3 {[%emt 0:00:57]} 41. Qxg3 {[%emt 0:00:11]} Rff6 {[%emt 0:01:20]} 42. Qg4 {[%emt 0:01:23]} Qh7 {[%emt 0:03:07]} 43. Qc8+ {[%emt 0:01:21]} Rf8 {[%emt 0:00:13]} 44. Rxc6 {[%emt 0:00:17]} Qh5 {[%emt 0:02:53]} 45. Rxd6 {[%emt 0:01:44]} Rxc8 {[%emt 0:00:33]} 46. Rxc8+ {[%emt 0:00:07]} Kf7 {[%emt 0:00:03]} 47. Rc7+ {[%emt 0:00:48]} Ke8 {[%emt 0:00:06]} 48. Rxd5 {[%emt 0:00:56]} Qd1+ {[%emt 0:00:09]} 49. Kg2 {[%emt 0:00:11]} Qg4+ {[%emt 0:00:12]} 50. Kf1 {[%emt 0:00:11]} Qd1+ {[%emt 0:00:05]} 51. Kg2 {[%emt 0:00:05]} Qg4+ {[%emt 0:00:05]} 1/2-1/2

[Event "13th Arad Open 2020"]
[Site "Arad"]
[Date "2020.09.30"]
[Round "8.10"]
[White "Pisu, Robert-Daniel"]
[Black "Craciun, Alexandru-Emilian"]
[Result "1/2-1/2"]
[ECO "E73"]
[WhiteElo "2223"]
[BlackElo "2090"]
[Annotator "ChessBase"]
[PlyCount "66"]
[EventDate "2020.09.25"]
[EventType "swiss"]
[EventCountry "ROU"]
[SourceTitle "playchess.com"]
[Source "ChessBase"]
[SourceQuality "1"]
[TimeControl "5400+30"]

1. d4 {[%emt 0:03:49]} Nf6 {[%emt 0:00:00]} 2. c4 {[%emt 0:00:07]} g6 {[%emt 0:00:00]} 3. Nc3 {[%emt 0:00:11]} Bg7 {[%emt 0:00:00]} 4. e4 {[%emt 0:00:10]} d6 {[%emt 0:00:02]} 5. Be2 {[%emt 0:00:17]} O-O {[%emt 0:00:13]} 6. Be3 {[%emt 0:00:03]} Na6 {[%emt 0:00:28]} 7. g4 {[%emt 0:01:34]} e5 {[%emt 0:02:21]} 8. d5 {[%emt 0:03:34]} Ne8 {[%emt 0:06:26]} 9. g5 {[%emt 0:13:31]} f5 {[%emt 0:00:39]} 10. gxf6 {[%emt 0:00:07]} Nxf6 {[%emt 0:00:09]} 11. h3 {[%emt 0:02:44]} c6 {[%emt 0:04:37]} 12. dxc6 {[%emt 0:12:08]} bxc6 {[%emt 0:00:02]} 13. Qd2 {[%emt 0:00:16]} Qe7 {[%emt 0:08:08]} 14. O-O-O {[%emt 0:03:30]} Rd8 {[%emt 0:00:52]} 15. Bg5 {[%emt 0:06:03]} Nc7 {[%emt 0:02:04]} 16. h4 {[%emt 0:10:54]} Be6 {[%emt 0:03:33]} 17. h5 {[%emt 0:08:33]} d5 {[%emt 0:01:27]} 18. hxg6 {[%emt 0:03:35]} hxg6 {[%emt 0:00:09]} 19. exd5 {[%emt 0:01:34]} cxd5 {[%emt 0:00:09]} 20. Nf3 {[%emt 0:01:50]} Bf7 {[%emt 0:30:32]} 21. Qe3 {[%emt 0:01:41]} e4 {[%emt 0:15:00]} 22. Nd4 {[%emt 0:02:51]} dxc4 {[%emt 0:00:50]} 23. Rdg1 {[%emt 0:09:53]} Qc5 {[%emt 0:01:52]} 24. Nc2 {[%emt 0:01:22]} Ne6 {[%emt 0:05:56]} 25. Bxf6 {[%emt 0:00:27]} Qxe3+ {[%emt 0:00:27]} 26. Nxe3 {[%emt 0:00:07]} Bxf6 {[%emt 0:00:08]} 27. Nxe4 {[%emt 0:00:30]} Bg7 {[%emt 0:04:58]} 28. Bxc4 {[%emt 0:01:02]} Rac8 {[%emt 0:01:13]} 29. Nc3 {[%emt 0:02:26]} Nf4 {[%emt 0:01:25]} 30. Bxf7+ {[%emt 0:04:18]} Kxf7 {[%emt 0:00:01]} 31. Rd1 {[%emt 0:01:56]} Bxc3 {[%emt 0:02:50]} 32. Rxd8 {[%emt 0:00:37]} Bxb2+ {[%emt 0:01:22]} 33. Kxb2 {[%emt 0:00:07]} Rxd8 {[%emt 0:00:03]} 1/2-1/2

[Event "13th Arad Open 2020"]
[Site "Arad"]
[Date "2020.09.30"]
[Round "9.1"]
[White "Istratescu, Andrei"]
[Black "Talu, Mircea"]
[Result "1/2-1/2"]
[ECO "A40"]
[WhiteElo "2551"]
[BlackElo "2351"]
[Annotator "ChessBase"]
[PlyCount "83"]
[EventDate "2020.09.25"]
[EventType "swiss"]
[EventCountry "ROU"]
[SourceTitle "playchess.com"]
[Source "ChessBase"]
[SourceQuality "1"]
[TimeControl "5400+30"]

1. d4 {[%emt 0:00:00]} Nf6 {[%emt 0:02:47]} 2. c4 {[%emt 0:00:00]} e6 {[%emt 0:00:06]} 3. g3 {[%emt 0:00:00]} d5 {[%emt 0:01:12]} 4. Nf3 {[%emt 0:01:06]} Bb4+ {[%emt 0:00:12]} 5. Bd2 {[%emt 0:00:11]} Bd6 {[%emt 0:00:07]} 6. Nc3 {[%emt 0:01:21]} c6 {[%emt 0:03:56]} 7. Qc2 {[%emt 0:00:43]} Nbd7 {[%emt 0:05:01]} 8. e4 {[%emt 0:02:25]} Nxe4 {[%emt 0:01:58]} 9. Nxe4 {[%emt 0:00:25]} dxe4 {[%emt 0:00:03]} 10. Qxe4 {[%emt 0:00:05]} Qe7 {[%emt 0:05:48]} 11. O-O-O {[%emt 0:08:06]} c5 {[%emt 0:06:08]} 12. Bg2 {[%emt 0:05:05]} O-O {[%emt 0:04:18]} 13. Rhe1 {[%emt 0:02:40]} h6 {[%emt 0:06:23]} 14. Bc3 {[%emt 0:03:57]} Re8 {[%emt 0:07:10]} 15. Qc2 {[%emt 0:07:39]} Nb6 {[%emt 0:06:49]} 16. b3 {[%emt 0:01:12]} Bd7 {[%emt 0:08:38]} 17. d5 {[%emt 0:08:02]} Qf8 {[%emt 0:05:29]} 18. dxe6 {[%emt 0:01:11]} Rxe6 {[%emt 0:01:15]} 19. Ne5 {[%emt 0:03:59]} Bxe5 {[%emt 0:02:23]} 20. Rxe5 {[%emt 0:02:11]} Rxe5 {[%emt 0:02:33]} 21. Bxe5 {[%emt 0:01:33]} Qc8 {[%emt 0:00:10]} 22. Rd6 {[%emt 0:02:03]} Bf5 {[%emt 0:06:58]} 23. Qc3 {[%emt 0:05:07]} Bg6 {[%emt 0:05:57]} 24. Bxg7 {[%emt 0:09:32]} Qf5 {[%emt 0:03:41]} 25. Bxh6 {[%emt 0:09:47]} Qb1+ {[%emt 0:00:16]} 26. Kd2 {[%emt 0:00:04]} Qxa2+ {[%emt 0:00:06]} 27. Kd1 {[%emt 0:01:00]} Qb1+ {[%emt 0:00:17]} 28. Bc1 {[%emt 0:01:17]} Re8 {[%emt 0:01:24]} 29. Bf1 {[%emt 0:00:19]} Qf5 {[%emt 0:04:21]} 30. f3 {[%emt 0:02:24]} Nd7 {[%emt 0:08:47]} 31. g4 {[%emt 0:01:47]} Qe5 {[%emt 0:00:00]} 32. Qxe5 {[%emt 0:01:18]} Nxe5 {[%emt 0:00:02]} 33. Be2 {[%emt 0:00:06]} Nc6 {[%emt 0:00:03]} 34. Bb2 {[%emt 0:00:38]} Bc2+ {[%emt 0:00:05]} 35. Kd2 {[%emt 0:01:41]} Bxb3 {[%emt 0:00:32]} 36. Rh6 {[%emt 0:00:53]} Nd4 {[%emt 0:01:15]} 37. Bxd4 {[%emt 0:01:40]} cxd4 {[%emt 0:00:01]} 38. Rd6 {[%emt 0:00:07]} a5 {[%emt 0:00:03]} 39. Rxd4 {[%emt 0:00:22]} a4 {[%emt 0:00:57]} 40. Bd1 {[%emt 0:00:23]} Bxd1 {[%emt 0:00:08]} 41. Kxd1 {[%emt 0:00:01]} Re3 {[%emt 0:00:18]} 42. c5 {[%emt 0:02:19]} 1/2-1/2

[Event "13th Arad Open 2020"]
[Site "Arad"]
[Date "2020.09.30"]
[Round "9.2"]
[White "Kozak, Adam"]
[Black "Filip, Lucian-Ioan"]
[Result "1/2-1/2"]
[ECO "A30"]
[WhiteElo "2503"]
[BlackElo "2432"]
[Annotator "ChessBase"]
[PlyCount "71"]
[EventDate "2020.09.25"]
[EventType "swiss"]
[EventCountry "ROU"]
[SourceTitle "playchess.com"]
[Source "ChessBase"]
[SourceQuality "1"]
[TimeControl "5400+30"]

1. Nf3 {[%emt 0:09:51]} c5 {[%emt 0:00:00]} 2. c4 {[%emt 0:01:59]} Nf6 {[%emt 0:00:46]} 3. g3 {[%emt 0:02:16]} b6 {[%emt 0:00:20]} 4. Bg2 {[%emt 0:00:21]} Bb7 {[%emt 0:00:04]} 5. O-O {[%emt 0:01:02]} e6 {[%emt 0:00:05]} 6. Nc3 {[%emt 0:02:16]} Be7 {[%emt 0:02:54]} 7. b3 {[%emt 0:01:05]} O-O {[%emt 0:00:29]} 8. Bb2 {[%emt 0:01:10]} d6 {[%emt 0:05:44]} 9. e3 {[%emt 0:02:28]} Nbd7 {[%emt 0:00:09]} 10. d3 {[%emt 0:01:41]} a6 {[%emt 0:01:20]} 11. Qe2 {[%emt 0:01:00]} Ra7 {[%emt 0:00:30]} 12. Nh4 {[%emt 0:02:43]} Bxg2 {[%emt 0:00:33]} 13. Nxg2 {[%emt 0:00:15]} Rb7 {[%emt 0:18:28]} 14. f4 {[%emt 0:01:19]} b5 {[%emt 0:01:27]} 15. g4 {[%emt 0:03:45]} bxc4 {[%emt 0:00:30]} 16. dxc4 {[%emt 0:00:30]} g6 {[%emt 0:00:30]} 17. Rad1 {[%emt 0:00:30]} Qc7 {[%emt 0:20:29]} 18. Ba1 {[%emt 0:12:55]} Ne8 {[%emt 0:09:14]} 19. h4 {[%emt 0:01:45]} f5 {[%emt 0:06:40]} 20. h5 {[%emt 0:02:44]} Ndf6 {[%emt 0:05:05]} 21. hxg6 {[%emt 0:01:27]} Nxg4 {[%emt 0:05:17]} 22. gxh7+ {[%emt 0:02:02]} Kxh7 {[%emt 0:00:02]} 23. e4 {[%emt 0:15:52]} Bf6 {[%emt 0:02:11]} 24. exf5 {[%emt 0:03:00]} exf5 {[%emt 0:00:02]} 25. Ne4 {[%emt 0:02:13]} fxe4 {[%emt 0:09:50]} 26. Qxg4 {[%emt 0:00:45]} Qg7 {[%emt 0:00:11]} 27. Qh3+ {[%emt 0:03:01]} Qh6 {[%emt 0:00:03]} 28. Qxh6+ {[%emt 0:00:12]} Kxh6 {[%emt 0:00:01]} 29. Bxf6 {[%emt 0:00:21]} Rxf6 {[%emt 0:00:06]} 30. f5 {[%emt 0:03:37]} Rg7 {[%emt 0:02:51]} 31. Rf4 {[%emt 0:02:02]} Rg5 {[%emt 0:00:49]} 32. Rh4+ {[%emt 0:04:44]} Kg7 {[%emt 0:02:22]} 33. Rxe4 {[%emt 0:00:09]} Kf8 {[%emt 0:00:21]} 34. Rf4 {[%emt 0:02:50]} Ng7 {[%emt 0:03:37]} 35. Kf2 {[%emt 0:01:18]} Rgxf5 {[%emt 0:01:44]} 36. Rxf5 {[%emt 0:01:49]} 1/2-1/2